fUST/lending_fUST_20240619
["ID","MTS","AMOUNT","RATE_DAILY","PERIOD"]
[329854007,1718760632747,-454.10900524,0.00017776,2]
[329854009,1718760632759,-500.0,0.00017776,2]
[329854010,1718760632768,-500.0,0.00017776,2]
[329854011,1718760632777,-527.76334794,0.00017776,2]
[329854012,1718760632786,-500.0,0.00017776,2]
[329854013,1718760632796,-500.0,0.00017776,2]
[329854014,1718760632810,-500.0,0.00017776,2]
[329854015,1718760632819,-500.0,0.00017776,2]
[329854016,1718760632828,-500.0,0.00017776,2]
[329854017,1718760632837,-500.0,0.00017776,2]
[329854018,1718760632847,-500.0,0.00017776,2]
[329854019,1718760632856,-500.0,0.00017776,2]
[329854020,1718760632865,-500.0,0.00017776,2]
[329854021,1718760632874,-614.18380638,0.00017776,2]
[329854022,1718760632884,-500.0,0.00017776,2]
[329854024,1718760632894,-500.0,0.00017776,2]
[329854025,1718760632904,-500.0,0.00017776,2]
[329854027,1718760632914,-500.0,0.00017776,2]
[329854029,1718760632923,-516.71302608,0.00017776,2]
[329854031,1718760632932,-501.25766984,0.00017776,2]
[329854033,1718760632941,-642.5,0.00017776,2]
[329854035,1718760632951,-500.0,0.00017776,2]
[329854037,1718760632960,-535.4504659,0.00017776,2]
[329854039,1718760632969,-500.0,0.00017776,2]
[329854041,1718760632978,-500.0,0.00017776,2]
[329854043,1718760632988,-1288.51,0.00017776,2]
[329854045,1718760632997,-623.56011062,0.00017776,2]
[329854047,1718760633006,-500.0,0.00017776,2]
[329854049,1718760633016,-500.0,0.00017776,2]
[329854051,1718760633027,-5491.83598332,0.00017776,2]
[329854126,1718760639473,-503.83330483,0.00016438,2]
[329854127,1718760639483,-6244.69636518,0.00017776,2]
[329854128,1718760639497,-468.12640148,0.00017776,2]
[329854129,1718760639509,-5458.40125002,0.00017776,2]
[329854132,1718760639519,-500.0,0.00017776,2]
[329854136,1718760639529,-377.65383449,0.00017776,2]
[329854138,1718760639541,-138.25390882,0.00017776,2]
[329854140,1718760639552,-2310.26,0.00017776,2]
[329854141,1718760639565,-500.0,0.00017776,2]
[329854143,1718760639575,-500.0,0.00017776,2]
[329854146,1718760639585,-500.0,0.00017776,2]
[329854147,1718760639594,-500.0,0.00017776,2]
[329854149,1718760639604,-500.0,0.00017776,2]
[329854151,1718760639613,-372.38501411,0.00017776,2]
[329854152,1718760639625,-127.61498589,0.00017776,2]
[329854153,1718760639635,-500.0,0.00017776,2]
[329854154,1718760639645,-500.0,0.00017776,2]
[329854155,1718760639657,-500.0,0.00017776,2]
[329854156,1718760639667,-500.0,0.00017776,2]
[329854157,1718760639799,-506.67505619,0.00017776,2]
[329854158,1718760639822,-500.0,0.00017776,2]
[329854159,1718760639832,-567.28,0.00017776,2]
[329854160,1718760639843,-500.0,0.00017776,2]
[329854161,1718760639853,-514.63523139,0.00017776,2]
[329854162,1718760639863,-500.0,0.00017776,2]
[329854163,1718760639873,-500.0,0.00017776,2]
[329854164,1718760639883,-500.0,0.00017776,2]
[329854165,1718760639893,-500.0,0.00017776,2]
[329854166,1718760639902,-503.1180167,0.00017776,2]
[329854167,1718760639912,-500.0,0.00017776,2]
[329854168,1718760639923,-34556.48537542,0.00017777,2]
[329854169,1718760639933,-500.0,0.00017777,2]
[329854170,1718760639943,-1447.29651176,0.00017778,2]
[329854171,1718760639954,-508.64284254,0.00017778,2]
[329854172,1718760639964,-510.08017713,0.00017778,2]
[329854173,1718760639974,-505.75310296,0.00017778,2]
[329854174,1718760639984,-505.61067137,0.00017778,2]
[329854175,1718760639994,-500.0,0.00017779,2]
[329854176,1718760640004,-382.99,0.00017779,2]
[329854177,1718760640014,-1971.59,0.00017779,2]
[329854178,1718760640024,-500.0,0.0001778,2]
[329854179,1718760640034,-505.78297005,0.0001778,2]
[329854180,1718760640044,-504.3499308,0.0001778,2]
[329854181,1718760640053,-510.47625315,0.0001778,2]
[329854183,1718760640066,-509.02244815,0.0001778,2]
[329854184,1718760640076,-511.82272909,0.0001778,2]
[329854185,1718760640086,-500.0,0.0001778,2]
[329854186,1718760640096,-500.45785559,0.0001778,2]
[329854187,1718760640107,-500.0,0.0001778,2]
[329854188,1718760640118,-500.0,0.0001778,2]
[329854189,1718760640127,-500.0,0.0001778,2]
[329854190,1718760640138,-500.0,0.0001778,2]
[329854191,1718760640147,-333.2024703,0.00017878,2]
[329854192,1718760640158,-477.01771694,0.00018,2]
[329854193,1718760640167,-997.97353188,0.00018006,2]
[329854194,1718760640178,-500.0,0.00018049,2]
[329854195,1718760640188,-500.0,0.0001805,2]
[329854196,1718760640198,-500.0,0.0001805,2]
[329854197,1718760640208,-500.0,0.0001805,2]
[329854198,1718760640218,-6.91382775,0.0001805,2]
[329854203,1718760640838,-566.88706354,0.00017775,2]
[329854204,1718760640848,-493.08617225,0.0001805,2]
[329854205,1718760640857,-500.0,0.0001805,2]
[329854206,1718760640867,-642.5,0.0001805,2]
[329854207,1718760640876,-500.0,0.0001805,2]
[329854208,1718760640886,-500.0,0.0001805,2]
[329854209,1718760640895,-1288.51,0.0001805,2]
[329854210,1718760640905,-17663.06,0.0001805,2]
[329854211,1718760640915,-2310.26,0.0001805,2]
[329854212,1718760640924,-500.0,0.0001805,2]
[329854213,1718760640934,-500.0,0.0001805,2]
[329854214,1718760640944,-540.84555788,0.0001805,2]
[329854215,1718760640953,-500.0,0.0001805,2]
[329854216,1718760640962,-500.0,0.0001805,2]
[329854217,1718760640972,-500.0,0.0001805,2]
[329854218,1718760640982,-500.0,0.0001805,2]
[329854219,1718760640991,-184.31,0.00018051,2]
[329854220,1718760641000,-500.0,0.00018051,2]
[329854221,1718760641010,-875.76660765,0.00018052,2]
[329854222,1718760641019,-500.0,0.00018053,2]
[329854223,1718760641029,-1971.59,0.00018053,2]
[329854224,1718760641038,-500.0,0.00018054,2]
[329854225,1718760641047,-500.0,0.00018054,2]
[329854226,1718760641057,-500.0,0.00018054,2]
[329854227,1718760641069,-475.01503593,0.00018227,2]
[329854228,1718760641079,-500.0,0.00018323,2]
[329854229,1718760641090,-500.0,0.00018324,2]
[329854230,1718760641099,-500.0,0.00018324,2]
[329854231,1718760641109,-500.0,0.00018324,2]
[329854232,1718760641118,-642.5,0.00018324,2]
[329854233,1718760641128,-500.0,0.00018324,2]
[329854234,1718760641137,-434.57,0.00018324,2]
[329854235,1718760641146,-1288.51,0.00018324,2]
[329854236,1718760641155,-17663.06,0.00018324,2]
[329854237,1718760641165,-2310.26,0.00018324,2]
[329854238,1718760641174,-500.0,0.00018324,2]
[329854239,1718760641183,-246.29030257,0.00018324,2]
[329854240,1718760641195,-253.70969743,0.00018324,2]
[329854241,1718760641205,-500.0,0.00018324,2]
[329854242,1718760641214,-500.0,0.00018324,2]
[329854243,1718760641224,-500.0,0.00018324,2]
[329854244,1718760641233,-500.0,0.00018324,2]
[329854245,1718760641242,-500.0,0.00018325,2]
[329854246,1718760641252,-904.32847984,0.00018326,4]
[329854247,1718760641261,-1971.59,0.00018327,2]
[329854248,1718760641270,-712.06219439,0.00018328,2]
[329854249,1718760641280,-544.36,0.00018328,2]
[329854250,1718760641289,-163.12425867,0.00018328,2]
[329854281,1718760643951,-500.0,0.00017776,2]
[329854283,1718760643960,-500.0,0.0001805,2]
[329854285,1718760643970,-364.15880784,0.00018324,2]
[329854286,1718760643979,-336.87574133,0.00018328,2]
[329854288,1718760643988,-151.0,0.00018328,2]
[329854290,1718760643997,-155.1982152,0.00018329,2]
[329854292,1718760644006,-3951.96104483,0.0001833,2]
[329854397,1718760646580,-1914.12394451,0.0001833,2]
[329854398,1718760646590,-151.0,0.0001833,2]
[329854399,1718760646600,-151.0,0.0001833,2]
[329854400,1718760646609,-151.0,0.0001833,2]
[329854401,1718760646618,-997.97353188,0.00018334,2]
[329854402,1718760646627,-327.23152851,0.00018597,2]
[329854403,1718760646636,-500.0,0.00018598,2]
[329854404,1718760646646,-642.5,0.00018598,2]
[329854405,1718760646656,-1288.51,0.00018598,2]
[329854406,1718760646665,-1228.27149096,0.00018598,2]
[329854419,1718761638169,-605.90139657,0.00015764,2]
[329854420,1718761641118,-147.29631153,0.00015764,2]
[329854421,1718761641143,-244.3151189,0.00015991,2]
[329854422,1718761641168,-188.99467419,0.00015991,2]
[329854423,1718761642118,-87.03832741,0.00015991,2]
[329854424,1718761642141,-68.59866996,0.00016006,2]
[329854425,1718761647169,-181.40133004,0.00016006,2]
[329854426,1718761647190,-828.59648392,0.00016436,2]
[329854427,1718761653136,-1161.92360367,0.00016436,2]
[329854428,1718761653157,-106.50003168,0.00016437,2]
[329854472,1718761832653,-607.79930049,0.00016437,2]
[329854474,1718761832663,-72.59114443,0.00016437,2]
[329854476,1718761832674,-227.40885557,0.00016437,2]
[329854478,1718761832684,-7677.2769818,0.00016438,2]
[329854480,1718761832696,-434.4293937,0.00016438,2]
[329854513,1718761839214,-15188.9725389,0.00016438,2]
[329854514,1718761839226,-912.49320534,0.0001691,4]
[329854515,1718761839236,-157.18431219,0.00016912,2]
[329854516,1718761839246,-403.4587337,0.00017675,2]
[329854517,1718761839256,-509.31635148,0.00017773,2]
[329854518,1718761839266,-549.48964537,0.00017773,2]
[329854519,1718761839276,-254.71247999,0.00017773,2]
[329854520,1718761839286,-500.0,0.00017773,2]
[329854521,1718761839295,-1359.92269564,0.00017774,2]
[329854523,1718761839305,-155.28400225,0.00017774,2]
[329854525,1718761839317,-500.0,0.00017774,2]
[329854527,1718761839326,-504.25463755,0.00017774,2]
[329854529,1718761839336,-502.61774681,0.00017774,2]
[329854531,1718761839344,-506.12730638,0.00017774,2]
[329854533,1718761839354,-504.16078404,0.00017774,2]
[329854535,1718761839364,-503.48294488,0.00017774,2]
[329854537,1718761839374,-508.54467906,0.00017774,2]
[329854539,1718761839383,-517.00410633,0.00017774,2]
[329854541,1718761839392,-500.0,0.00017774,2]
[329854543,1718761839402,-513.93237328,0.00017774,2]
[329854545,1718761839411,-511.75516404,0.00017774,2]
[329854547,1718761839422,-505.83998043,0.00017774,2]
[329854549,1718761839431,-500.0,0.00017774,2]
[329854551,1718761839441,-3877.93,0.00017774,2]
[329854553,1718761839450,-1935.3,0.00017774,2]
[329854554,1718761839459,-500.0,0.00017774,2]
[329854555,1718761839468,-500.0,0.00017774,2]
[329854556,1718761839477,-260.06376592,0.00017774,2]
[329854557,1718761839487,-863.47,0.00017774,2]
[329854558,1718761839497,-500.0,0.00017774,2]
[329854559,1718761839507,-513.6553576,0.00017774,2]
[329854560,1718761839517,-500.0,0.00017774,2]
[329854561,1718761839527,-464.42733291,0.00017774,2]
[329854562,1718761839536,-500.0,0.00017774,2]
[329854563,1718761839545,-500.0,0.00017774,2]
[329854564,1718761839555,-547.37,0.00017774,2]
[329854565,1718761839565,-500.0,0.00017774,2]
[329854566,1718761839574,-500.0,0.00017774,2]
[329854567,1718761839583,-623.25,0.00017774,2]
[329854568,1718761839592,-506.44102874,0.00017774,2]
[329854569,1718761839602,-500.0,0.00017774,2]
[329854570,1718761839612,-515.76820058,0.00017774,2]
[329854572,1718761839621,-542.55518755,0.00017774,2]
[329854574,1718761839631,-502.99637107,0.00017775,2]
[329854576,1718761839640,-503.91022504,0.00017775,2]
[329854578,1718761839649,-506.88564254,0.00017775,2]
[329854580,1718761839659,-500.0,0.00017775,2]
[329854582,1718761839668,-518.93652068,0.00017775,2]
[329854584,1718761839677,-507.95552145,0.00017775,2]
[329854586,1718761839686,-500.0,0.00017775,2]
[329854587,1718761839696,-518.10349801,0.00017775,2]
[329854589,1718761839705,-500.0,0.00017775,2]
[329854591,1718761839715,-500.0,0.00017775,2]
[329854593,1718761839725,-505.29420783,0.00017775,2]
[329854595,1718761839735,-272.71817156,0.00017775,2]
[329854598,1718761839744,-504.94344948,0.00017775,2]
[329854600,1718761839754,-503.6330871,0.00017775,2]
[329854602,1718761839764,-504.84870896,0.00017775,2]
[329854604,1718761839774,-516.6344295,0.00017775,2]
[329854606,1718761839783,-500.67274626,0.00017775,2]
[329854607,1718761839792,-500.0,0.00017775,2]
[329854610,1718761839802,-530.84630217,0.00017775,2]
[329854612,1718761839811,-519.59,0.00017775,2]
[329854614,1718761839823,-500.0,0.00017775,2]
[329854616,1718761839834,-509.11708442,0.00017775,2]
[329854618,1718761839844,-340.47769639,0.00017775,2]
[329854619,1718761839853,-1117.01,0.00017775,2]
[329854622,1718761839864,-503.45907133,0.00017775,2]
[329854624,1718761839875,-500.0,0.00017775,2]
[329854626,1718761839885,-517.43691333,0.00017775,2]
[329854628,1718761839895,-511.88687797,0.00017775,2]
[329854630,1718761839904,-500.0,0.00017775,2]
[329854632,1718761839914,-505.43278688,0.00017775,2]
[329854634,1718761839924,-500.0,0.00017775,2]
[329854636,1718761839934,-16783.02,0.00017775,2]
[329854638,1718761839944,-500.0,0.00017775,2]
[329854640,1718761839953,-510.97003985,0.00017775,2]
[329854642,1718761839963,-510.61604182,0.00017776,2]
[329854644,1718761839972,-504.2676459,0.00017776,2]
[329854646,1718761839982,-506.68669505,0.00017776,2]
[329854648,1718761839992,-504.79561635,0.00017776,2]
[329854650,1718761840001,-500.0,0.00017776,2]
[329854652,1718761840012,-403.45873366,0.00018004,2]
[329854654,1718761840021,-436.84778693,0.00018047,2]
[329854656,1718761840031,-370.45266711,0.00018048,2]
[329854658,1718761840040,-500.0,0.00018048,2]
[329854660,1718761840049,-547.84438392,0.00018048,2]
[329854662,1718761840061,-3877.93,0.00018048,2]
[329854664,1718761840074,-1935.3,0.00018048,2]
[329854666,1718761840084,-500.0,0.00018048,2]
[329854668,1718761840093,-500.0,0.00018048,2]
[329854670,1718761840103,-863.47,0.00018048,2]
[329854672,1718761840113,-500.0,0.00018048,2]
[329854674,1718761840128,-500.0,0.00018048,2]
[329854676,1718761840139,-500.0,0.00018048,2]
[329854678,1718761840149,-547.37,0.00018048,2]
[329854680,1718761840162,-500.0,0.00018048,2]
[329854682,1718761840172,-500.0,0.00018048,2]
[329854684,1718761840183,-623.25,0.00018048,2]
[329854686,1718761840192,-500.0,0.00018048,2]
[329854688,1718761840202,-292.10214426,0.00018049,2]
[329854690,1718761840212,-500.0,0.00018049,2]
[329854692,1718761840222,-500.0,0.00018049,2]
[329854694,1718761840232,-500.0,0.00018049,2]
[329854696,1718761840241,-500.0,0.00018049,2]
[329854698,1718761840251,-519.59,0.00018049,2]
[329854700,1718761840261,-500.0,0.00018049,2]
[329854702,1718761840271,-1117.01,0.00018049,2]
[329854704,1718761840280,-500.0,0.00018049,2]
[329854706,1718761840290,-500.0,0.00018049,2]
[329854708,1718761840301,-500.0,0.00018049,2]
[329854710,1718761840310,-16783.02,0.00018049,2]
[329854712,1718761840328,-500.0,0.00018049,2]
[329854714,1718761840339,-500.0,0.0001805,2]
[329854716,1718761840350,-500.0,0.00018322,2]
[329854720,1718761840360,-3877.93,0.00018322,2]
[329854723,1718761840370,-1935.3,0.00018322,2]
[329854726,1718761840380,-500.0,0.00018322,2]
[329854728,1718761840391,-500.0,0.00018322,2]
[329854730,1718761840401,-863.47,0.00018322,2]
[329854732,1718761840412,-500.0,0.00018322,2]
[329854734,1718761840424,-500.0,0.00018322,2]
[329854736,1718761840435,-500.0,0.00018322,2]
[329854738,1718761840445,-547.37,0.00018322,2]
[329854740,1718761840457,-500.0,0.00018322,2]
[329854741,1718761840467,-500.0,0.00018322,2]
[329854742,1718761840477,-623.25,0.00018322,2]
[329854743,1718761840487,-500.0,0.00018322,2]
[329854744,1718761840497,-500.0,0.00018323,2]
[329854745,1718761840507,-500.0,0.00018323,2]
[329854746,1718761840517,-500.0,0.00018323,2]
[329854747,1718761840527,-199.882047,0.00018323,2]
[329854748,1718761840536,-199.882047,0.00018323,2]
[329854749,1718761840545,-500.0,0.00018323,2]
[329854750,1718761840555,-178.930988,0.00018323,2]
[329854751,1718761840568,-519.59,0.00018323,2]
[329854752,1718761840578,-500.0,0.00018323,2]
[329854753,1718761840587,-1117.01,0.00018323,2]
[329854754,1718761840598,-500.0,0.00018323,2]
[329854755,1718761840608,-500.0,0.00018323,2]
[329854756,1718761840725,-151.0,0.00018323,2]
[329854757,1718761840735,-151.0,0.00018323,2]
[329854758,1718761840746,-500.0,0.00018323,2]
[329854759,1718761840756,-16783.02,0.00018323,2]
[329854760,1718761840767,-500.0,0.00018323,2]
[329854761,1718761840777,-151.0,0.00018323,2]
[329854762,1718761840787,-500.0,0.00018324,2]
[329854763,1718761840797,-403.45873366,0.00018333,2]
[329854764,1718761840806,-478.48100548,0.00018596,2]
[329854765,1718761840822,-320.63127363,0.00018596,2]
[329854766,1718761840832,-3877.93,0.00018596,2]
[329854767,1718761840842,-1935.3,0.00018596,2]
[329854768,1718761840852,-500.0,0.00018596,2]
[329854769,1718761840863,-500.0,0.00018596,2]
[329854770,1718761840872,-863.47,0.00018596,2]
[329854771,1718761840882,-239.5390748,0.00018596,2]
[329854772,1718761840892,-500.0,0.00018596,2]
[329854773,1718761840902,-500.0,0.00018596,2]
[329854774,1718761840912,-547.37,0.00018596,2]
[329854775,1718761840922,-500.0,0.00018596,2]
[329854776,1718761840931,-500.0,0.00018596,2]
[329854777,1718761840941,-623.25,0.00018596,2]
[329854778,1718761840950,-500.0,0.00018596,2]
[329854779,1718761840960,-262.77991177,0.00018597,15]
[329854780,1718761840969,-500.0,0.00018597,2]
[329854781,1718761840978,-500.0,0.00018597,2]
[329854782,1718761840988,-500.0,0.00018597,2]
[329854783,1718761840997,-199.882047,0.00018597,2]
[329854784,1718761841006,-199.882047,0.00018597,2]
[329854785,1718761841015,-500.0,0.00018597,2]
[329854786,1718761841025,-519.59,0.00018597,2]
[329854787,1718761841034,-500.0,0.00018597,2]
[329854788,1718761841044,-1117.01,0.00018597,2]
[329854789,1718761841054,-500.0,0.00018597,2]
[329854790,1718761841066,-500.0,0.00018597,2]
[329854791,1718761841075,-151.0,0.00018597,2]
[329854792,1718761841084,-2913.47,0.00018597,2]
[329854793,1718761841094,-235.109047,0.00018597,2]
[329854794,1718761841104,-500.0,0.00018597,2]
[329854795,1718761841115,-16783.02,0.00018597,2]
[329854796,1718761841129,-159.81971746,0.00018597,2]
[329854797,1718761841139,-500.0,0.00018597,2]
[329854798,1718761841148,-151.0,0.00018597,2]
[329854799,1718761841158,-151.0,0.00018598,2]
[329854800,1718761841168,-500.0,0.00018598,2]
[329854801,1718761841178,-403.45873366,0.00018662,2]
[329854802,1718761841187,-3877.93,0.0001887,2]
[329854803,1718761841198,-1935.3,0.0001887,2]
[329854804,1718761841208,-500.0,0.0001887,2]
[329854805,1718761841218,-500.0,0.0001887,2]
[329854806,1718761841228,-863.47,0.0001887,2]
[329854807,1718761841237,-500.0,0.0001887,2]
[329854808,1718761841246,-500.0,0.0001887,2]
[329854809,1718761841255,-547.37,0.0001887,2]
[329854810,1718761841265,-500.0,0.0001887,2]
[329854811,1718761841275,-500.0,0.0001887,2]
[329854812,1718761841284,-623.25,0.0001887,2]
[329854813,1718761841295,-500.0,0.0001887,2]
[329854814,1718761841306,-500.0,0.00018871,2]
[329854815,1718761841318,-500.0,0.00018871,2]
[329854816,1718761841327,-500.0,0.00018871,2]
[329854817,1718761841337,-199.882047,0.00018871,2]
[329854818,1718761841346,-199.882047,0.00018871,2]
[329854819,1718761841355,-500.0,0.00018871,2]
[329854820,1718761841364,-519.59,0.00018871,2]
[329854821,1718761841373,-500.0,0.00018871,2]
[329854822,1718761841382,-1117.01,0.00018871,2]
[329854823,1718761841393,-500.0,0.00018871,2]
[329854824,1718761841402,-500.0,0.00018871,2]
[329854825,1718761841411,-151.0,0.00018871,2]
[329854826,1718761841420,-2913.47,0.00018871,2]
[329854827,1718761841430,-500.0,0.00018871,2]
[329854828,1718761841439,-16783.02,0.00018871,2]
[329854829,1718761841449,-500.0,0.00018871,2]
[329854830,1718761841458,-200.653946,0.00018871,2]
[329854831,1718761841467,-500.0,0.00018872,2]
[329854832,1718761841476,-151.0,0.00018875,2]
[329854833,1718761841485,-1943.9914902,0.000189,2]
[329854834,1718761841495,-403.45873366,0.00018991,2]
[329854835,1718761841504,-598.9760929,0.00019,2]
[329854836,1718761841513,-160.0,0.00019088,3]
[329854837,1718761841523,-20238.27546945,0.00019091,2]
[329854838,1718761841532,-199.882047,0.00019091,2]
[329854839,1718761841541,-199.882047,0.00019091,2]
[329854840,1718761841550,-151.0,0.00019091,2]
[329854841,1718761841559,-280.170076,0.00019096,2]
[329854842,1718761841572,-3877.93,0.00019144,2]
[329854843,1718761841582,-1935.3,0.00019144,2]
[329854844,1718761841591,-500.0,0.00019144,2]
[329854845,1718761841600,-500.0,0.00019144,2]
[329854846,1718761841608,-863.47,0.00019144,2]
[329854847,1718761841618,-166.78573303,0.00019144,2]
[329854848,1718761841627,-500.0,0.00019144,2]
[329854849,1718761841636,-500.0,0.00019144,2]
[329854850,1718761841645,-547.37,0.00019144,2]
[329854851,1718761841655,-500.0,0.00019144,2]
[329854852,1718761841663,-500.0,0.00019144,2]
[329854853,1718761841673,-623.25,0.00019144,2]
[329854854,1718761841682,-500.0,0.00019144,2]
[329854855,1718761841691,-500.0,0.00019145,2]
[329854856,1718761841700,-500.0,0.00019145,2]
[329854857,1718761841709,-500.0,0.00019145,2]
[329854858,1718761841718,-199.882047,0.00019145,2]
[329854859,1718761841727,-199.882047,0.00019145,2]
[329854860,1718761841736,-500.0,0.00019145,2]
[329854861,1718761841745,-519.59,0.00019145,2]
[329854862,1718761841754,-500.0,0.00019145,2]
[329854863,1718761841763,-1117.01,0.00019145,2]
[329854864,1718761841772,-500.0,0.00019145,2]
[329854865,1718761841781,-500.0,0.00019145,2]
[329854866,1718761841790,-193.836966,0.00019145,2]
[329854867,1718761841799,-2913.47,0.00019145,2]
[329854868,1718761841808,-16783.02,0.00019145,2]
[329854869,1718761841819,-500.0,0.00019145,2]
[329854870,1718761841828,-151.0,0.00019146,2]
[329854871,1718761841837,-500.0,0.00019146,2]
[329854872,1718761841847,-3767.44106409,0.00019375,2]
[329854873,1718761841856,-3877.93,0.00019418,2]
[329854874,1718761841865,-1935.3,0.00019418,2]
[329854875,1718761841875,-500.0,0.00019418,2]
[329854876,1718761841884,-500.0,0.00019418,2]
[329854877,1718761841893,-863.47,0.00019418,2]
[329854878,1718761841902,-500.0,0.00019418,2]
[329854879,1718761841911,-534.48390433,0.00019418,2]
[329854880,1718761841921,-547.37,0.00019418,2]
[329854881,1718761841930,-500.0,0.00019418,2]
[329854882,1718761841939,-519.45042844,0.00019418,2]
[329854883,1718761841950,-623.25,0.00019418,2]
[329854884,1718761841959,-500.0,0.00019418,2]
[329854885,1718761841968,-520.12071517,0.00019419,2]
[329854886,1718761841978,-523.05262777,0.00019419,2]
[329854887,1718761841987,-532.45718921,0.00019419,2]
[329854888,1718761841996,-199.882047,0.00019419,2]
[329854889,1718761842006,-199.882047,0.00019419,2]
[329854890,1718761842016,-514.6236503,0.00019419,2]
[329854891,1718761842026,-519.59,0.00019419,2]
[329854892,1718761842036,-516.37019817,0.00019419,2]
[329854893,1718761842045,-1117.01,0.00019419,2]
[329854894,1718761842054,-500.0,0.00019419,2]
[329854895,1718761842066,-500.0,0.00019419,2]
[329854896,1718761842075,-2913.47,0.00019419,2]
[329854897,1718761842084,-16783.02,0.00019419,2]
[329854898,1718761842093,-523.07780525,0.00019419,2]
[329854899,1718761842102,-520.18906052,0.0001942,2]
[329854900,1718761842112,-151.0,0.00019422,2]
[329854901,1718761842125,-155.0,0.0001956,2]
[329854902,1718761842137,-497.373,0.00019622,2]
[329854903,1718761842147,-907.921,0.00019622,2]
[329854904,1718761842158,-3877.93,0.00019692,2]
[329854905,1718761842167,-1935.3,0.00019692,2]
[329854906,1718761842177,-500.0,0.00019692,2]
[329854907,1718761842186,-324.79905213,0.00019692,2]
[329854908,1718761842195,-863.47,0.00019692,2]
[329854909,1718761842207,-500.0,0.00019692,2]
[329854910,1718761842221,-547.37,0.00019692,2]
[329854911,1718761842230,-500.0,0.00019692,2]
[329854912,1718761842240,-623.25,0.00019692,2]
[329854913,1718761842249,-500.0,0.00019692,2]
[329854914,1718761842257,-199.882047,0.00019693,2]
[329854915,1718761842266,-199.882047,0.00019693,2]
[329854916,1718761842275,-519.59,0.00019693,2]
[329854917,1718761842284,-1117.01,0.00019693,2]
[329854918,1718761842295,-520.10110283,0.00019693,2]
[329854919,1718761842305,-556.21301336,0.00019693,2]
[329854920,1718761842317,-2913.47,0.00019693,2]
[329854921,1718761842326,-16783.02,0.00019693,2]
[329854922,1718761842335,-641.37411101,0.000197,2]
[329854923,1718761842344,-641.374111,0.000197,2]
[329854924,1718761842353,-641.374111,0.000197,2]
[329854925,1718761842362,-641.374111,0.000197,2]
[329854926,1718761842371,-641.374111,0.000197,2]
[329854927,1718761842379,-641.374111,0.000197,2]
[329854928,1718761842388,-641.374111,0.000197,2]
[329854929,1718761842398,-641.374111,0.000197,2]
[329854930,1718761842408,-641.374111,0.000197,2]
[329854931,1718761842417,-641.374111,0.000197,2]
[329854932,1718761842427,-151.0,0.000197,2]
[329854933,1718761842436,-160.0,0.00019799,4]
[329854934,1718761842446,-270.08554175,0.00019799,5]
[329854935,1718761842455,-394.53105267,0.000198,2]
[329854936,1718761842465,-250.677,0.00019874,2]
[329854937,1718761842474,-262.701923,0.00019893,2]
[329854938,1718761842483,-229.476799,0.00019893,2]
[329854939,1718761842492,-169.594037,0.00019893,2]
[329854940,1718761842502,-710.276022,0.00019893,2]
[329854941,1718761842511,-1020.739261,0.00019893,2]
[329854942,1718761842520,-466.437566,0.00019893,2]
[329854943,1718761842530,-920.43810739,0.00019963,2]
[329854944,1718761842539,-1154.12966658,0.00019966,2]
[329854945,1718761842554,-2449.04191199,0.00019966,2]